fUSD/lending_fUSD_20250612
["ID","MTS","AMOUNT","RATE_DAILY","PERIOD"]
[365533995,1749769846685,-1976.42,0.00016999,2]
[365533996,1749769846695,-490.0,0.00016999,2]
[365533997,1749769846705,-490.0,0.00016999,2]
[365533998,1749769846714,-500.0,0.00016999,2]
[365533999,1749769846723,-490.0,0.00016999,2]
[365534000,1749769846733,-500.0,0.00016999,2]
[365534001,1749769846745,-500.0,0.00016999,2]
[365534002,1749769846755,-31229.7,0.00016999,2]
[365534003,1749769846765,-500.0,0.00016999,2]
[365534004,1749769846774,-500.0,0.00016999,2]
[365534005,1749769846784,-500.0,0.00016999,2]
[365534006,1749769846794,-500.0,0.00016999,2]
[365534007,1749769846804,-490.0,0.00016999,2]
[365534008,1749769846813,-500.0,0.00016999,2]
[365534009,1749769846823,-500.0,0.00016999,2]
[365534010,1749769846832,-490.0,0.00016999,2]
[365534011,1749769846842,-500.0,0.00016999,2]
[365534012,1749769846852,-490.0,0.00016999,2]
[365534013,1749769846862,-500.0,0.00016999,2]
[365534014,1749769846871,-500.0,0.00016999,2]
[365534015,1749769846881,-500.0,0.00016999,2]
[365534016,1749769846891,-500.0,0.00016999,2]
[365534017,1749769846900,-500.0,0.00016999,2]
[365534018,1749769846910,-500.0,0.00016999,2]
[365534019,1749769846919,-500.0,0.00016999,2]
[365534020,1749769846929,-532.9,0.00016999,2]
[365534021,1749769846939,-490.0,0.00016999,2]
[365534022,1749769846948,-1415.05,0.00016999,2]
[365534023,1749769846958,-629.06,0.00016999,2]
[365534024,1749769846968,-490.0,0.00016999,2]
[365534025,1749769846977,-1635.51,0.00016999,2]
[365534026,1749769846987,-490.0,0.00016999,2]
[365534027,1749769846997,-5068.6,0.00016999,2]
[365534028,1749769847007,-490.0,0.00016999,2]
[365534029,1749769847017,-3336.49,0.00016999,2]
[365534030,1749769847027,-490.0,0.00016999,2]
[365534031,1749769847037,-1103.51,0.00016999,2]
[365534032,1749769847047,-1055.28,0.00016999,2]
[365534033,1749769847057,-1055.28,0.00016999,2]
[365534034,1749769847067,-500.0,0.00016999,2]
[365534035,1749769847076,-490.0,0.00016999,2]
[365534036,1749769847086,-1055.28,0.00016999,2]
[365534037,1749769847095,-392.53753484,0.00016999,2]
[365534038,1749769847105,-1055.28,0.00016999,2]
[365534039,1749769847114,-196.49591832,0.00016999,2]
[365534040,1749769847124,-1055.28,0.00016999,2]
[365534041,1749769847134,-1055.28,0.00016999,2]
[365534042,1749769847145,-1055.28,0.00016999,2]
[365534043,1749769847155,-1055.28,0.00016999,2]
[365534044,1749769847165,-1055.28,0.00016999,2]
[365534045,1749769847175,-1055.28,0.00016999,2]
[365534046,1749769847185,-1055.28,0.00016999,2]
[365534047,1749769847194,-1055.28,0.00016999,2]
[365534048,1749769847204,-490.0,0.00016999,2]
[365534049,1749769847216,-1055.28,0.00016999,2]
[365534050,1749769847226,-1055.28,0.00016999,2]
[365534051,1749769847235,-490.0,0.00016999,2]
[365534052,1749769847245,-1055.28,0.00016999,2]
[365534053,1749769847255,-490.0,0.00016999,2]
[365534054,1749769847265,-1055.28,0.00016999,2]
[365534055,1749769847275,-542.621442,0.00016999,2]
[365534056,1749769847285,-490.0,0.00016999,2]
[365534057,1749769847295,-2539.24,0.00016999,2]
[365534058,1749769847305,-490.0,0.00016999,2]
[365534059,1749769847314,-294.08302861,0.00016999,2]
[365534060,1749769847324,-490.0,0.00016999,2]
[365534061,1749769847334,-685.18,0.00016999,2]
[365534062,1749769847345,-490.0,0.00016999,2]
[365534063,1749769847355,-490.0,0.00016999,2]
[365534064,1749769847364,-2844.81,0.00016999,2]
[365534065,1749769847375,-490.0,0.00016999,2]
[365534066,1749769847385,-3969.26,0.00016999,2]
[365534067,1749769847395,-490.0,0.00016999,2]
[365534068,1749769847406,-490.0,0.00016999,2]
[365534069,1749769847416,-1376.85,0.00016999,2]
[365534070,1749769847426,-490.0,0.00016999,2]
[365534071,1749769847435,-1210.07,0.00016999,2]
[365534072,1749769847445,-490.0,0.00016999,2]
[365534073,1749769847455,-423.48920042,0.00016999,2]
[365534074,1749769847466,-490.0,0.00016999,2]
[365534075,1749769847476,-300.0,0.00016999,2]
[365534076,1749769847486,-576.46,0.00016999,2]
[365534077,1749769847500,-490.0,0.00016999,2]
[365534078,1749769847510,-490.0,0.00016999,2]
[365534079,1749769847520,-1150.32,0.00016999,2]
[365534080,1749769847531,-490.0,0.00016999,2]
[365534081,1749769847542,-2156.86,0.00016999,2]
[365534082,1749769847557,-150.0,0.00016999,2]
[365534083,1749769847567,-2606.11,0.00016999,2]
[365534084,1749769847578,-490.0,0.00016999,2]
[365534085,1749769847589,-502.5360487,0.00016999,2]
[365534086,1749769847599,-490.0,0.00016999,2]
[365534087,1749769847611,-490.0,0.00016999,2]
[365534088,1749769847621,-858.59,0.00016999,2]
[365534089,1749769847631,-490.0,0.00016999,2]
[365534090,1749769847640,-743.12,0.00016999,2]
[365534091,1749769847650,-490.0,0.00016999,2]
[365534092,1749769847659,-490.0,0.00016999,2]
[365534093,1749769847669,-300.0,0.00016999,2]
[365534094,1749769847679,-495.34,0.00016999,2]
[365534095,1749769847689,-490.0,0.00016999,2]
[365534096,1749769847699,-4359.71,0.00016999,2]
[365534097,1749769847708,-500.0,0.00016999,2]
[365534098,1749769847718,-490.0,0.00016999,2]
[365534099,1749769847728,-1317.0,0.00016999,2]
[365534100,1749769847738,-489.44129876,0.00016999,2]
[365534101,1749769847756,-885.55,0.00016999,2]
[365534102,1749769847766,-490.0,0.00016999,2]
[365534103,1749769847776,-1284.49,0.00016999,2]
[365534104,1749769847787,-490.0,0.00016999,2]
[365534105,1749769847797,-490.0,0.00016999,2]
[365534106,1749769847807,-502.2528306,0.00016999,2]
[365534107,1749769847818,-490.0,0.00016999,2]
[365534108,1749769847827,-171.57828474,0.00016999,2]
[365534109,1749769847838,-1555.14,0.00016999,2]
[365534110,1749769847848,-490.0,0.00016999,2]
[365534111,1749769847858,-490.0,0.00016999,2]
[365534112,1749769847869,-150.0,0.00016999,2]
[365534113,1749769847879,-490.0,0.00016999,2]
[365534114,1749769847888,-942.44,0.00016999,2]
[365534115,1749769847898,-490.0,0.00016999,2]
[365534116,1749769847907,-432.76040881,0.00016999,2]
[365534117,1749769847917,-2287.79,0.00016999,2]
[365534118,1749769847927,-150.0,0.00016999,2]
[365534119,1749769847936,-150.0,0.00016999,2]
[365534120,1749769847946,-490.0,0.00016999,2]
[365534121,1749769847956,-490.0,0.00016999,2]
[365534122,1749769847966,-500.0,0.00016999,2]
[365534123,1749769847975,-490.0,0.00016999,2]
[365534124,1749769847985,-247.16,0.00017,2]
[365534125,1749769847999,-253.88,0.00017,2]
[365534126,1749769848009,-304.62,0.00017,2]
[365534127,1749769848019,-247.06,0.00017,2]
[365534128,1749769848028,-833.43051846,0.00017,3]
[365534129,1749769848038,-1032.87657433,0.00017,3]
[365534130,1749769848048,-325794.29199694,0.00017,3]
[365534131,1749769848058,-906197.04293117,0.00017,2]
[365534132,1749769848078,-2642.14771376,0.00017,2]
[365534133,1749769848090,-1214.98276237,0.00017,2]
[365534134,1749769848102,-5180.56506876,0.00017,2]
[365534135,1749769848113,-31455.57136221,0.00017,2]
[365534136,1749769848125,-1781.137005,0.00017,2]
[365534137,1749769848136,-1363.68834929,0.00017,2]
[365534138,1749769848148,-6106.27801381,0.00017,2]
[365534139,1749769848159,-7249.99216898,0.00017,2]
[365534140,1749769850531,-2326.98,0.000167,2]
[365534141,1749769850543,-325.15743047,0.00016799,2]
[365534142,1749769850558,-490.0,0.00016999,2]
[365534143,1749769850570,-2040.89093634,0.00017,2]
[365534144,1749769850587,-2600.85905041,0.00017,2]
[365534145,1749769854035,-500.0,0.00016799,2]
[365534146,1749769854045,-413.01597433,0.00016799,2]
[365534147,1749769854054,-500.0,0.00016799,2]
[365534148,1749769854063,-237.76783834,0.00016799,2]
[365534149,1749769854075,-262.23216166,0.00016799,2]
[365534150,1749769854084,-567.23781184,0.00016999,2]
[365534151,1749769854093,-1373.39658108,0.00017,2]
[365534152,1749769854105,-410.80424206,0.00017,2]
[365534153,1749769854167,-37066.96810108,0.00017,2]
[365534154,1749769854178,-15949.75767,0.00017,2]
[365534155,1749769854190,-5135.3494555,0.00017,2]
[365534156,1749769854324,-46351.41407419,0.00017,2]
[365534157,1749769854336,-4576.1029701,0.00017,2]
[365534158,1749769869431,5000.0,0.00016001,2]
[365534159,1749769879371,5000.0,0.00016001,2]
[365534160,1749769896770,500.0,0.00016001,2]
[365534161,1749769901411,206.0,0.0001507,2]
[365534162,1749769931968,5000.0,0.00016001,2]
[365534164,1749770010346,292.05,0.00013699,2]
[365534165,1749770040253,2500.0,0.00024658,120]
[365534166,1749770056887,2500.0,0.0002,30]
[365534167,1749770149209,1000.0,0.00015995,2]
[365534168,1749770324454,172.27475189,0.00024658,120]
[365534169,1749770326615,172.27475189,0.00024658,120]
[365534170,1749770327708,172.27475189,0.00024658,120]
[365534171,1749770328742,172.27475189,0.00024658,120]
[365534172,1749770330302,172.27475189,0.00024658,120]
[365534173,1749770331289,200.0,0.00015965,2]
[365534174,1749770342869,172.27475189,0.00024658,120]
[365534175,1749770406075,9784.37,0.00016,2]
[365534176,1749770463121,3541.78147356,0.00016,2]
[365534177,1749770511547,3845.29,0.00015943,2]
[365534178,1749770514263,2000.0,0.00016,2]
[365534179,1749770532809,202.0,0.00015499,2]
[365534180,1749770564236,200.0,0.00015929,7]
[365534181,1749770600172,84142.253,0.00016,2]
[365534182,1749770614802,499.99,0.00024658,120]
[365534183,1749770626077,25882.18307271,0.00016,2]
[365534184,1749770633285,490.01,0.00024658,120]
[365534185,1749770646531,694.42,0.00024658,120]
[365534186,1749770726323,620.2,0.00015921,2]
[365534187,1749770852395,302.08,0.00015931,2]
[365534188,1749770852756,200000.0,0.00024658,120]
[365534190,1749770883677,6583.46,0.00015936,2]
[365534191,1749770893277,202.0,0.0001577,2]
[365534192,1749770915110,565.59,0.00014008,2]
[365534199,1749771002659,666.0,0.00015927,2]
[365534209,1749771032334,-565.59,0.00016272,2]
[365534210,1749771032344,-158.52652513,0.00016422,4]
[365534212,1749771032368,-441.47347487,0.00016422,4]
[365534214,1749771032378,-1000.0,0.000166,2]
[365534216,1749771032387,-867.9924602,0.00016747,2]
[365534217,1749771032397,-833.43051846,0.00016787,2]
[365534218,1749771032407,-174.09612077,0.00016789,2]
[365534219,1749771032419,-33.30387923,0.00016789,2]
[365534220,1749771032428,-300.0,0.00016797,2]
[365534221,1749771032437,-121.62141296,0.00016797,2]
[365534222,1749771032449,-476.47053834,0.00016797,2]
[365534223,1749771032460,-601.9080487,0.00016797,2]
[365534224,1749771032470,-303.31,0.00016798,2]
[365534225,1749771032480,-252.29,0.00016798,2]
[365534226,1749771032489,-248.83,0.00016798,2]
[365534227,1749771032499,-252.91,0.00016798,2]
[365534228,1749771032508,-150.43163061,0.00016798,2]
[365534229,1749771032531,-98.04836939,0.00016798,2]
[365534230,1749771032540,-253.54,0.00016798,2]
[365534231,1749771032550,-248.97219502,0.00016798,2]
[365534232,1749771032565,-0.71780498,0.00016798,2]
[365534233,1749771032574,-248.5,0.00016798,2]
[365534234,1749771032583,-262.79377602,0.00016798,2]
[365534235,1749771032599,-43.02622398,0.00016798,2]
[365534236,1749771032609,-246.99,0.00016798,2]
[365534237,1749771032618,-49.16290048,0.00016798,2]
[365534238,1749771032642,-201.86709952,0.00016798,2]
[365534239,1749771032651,-253.1,0.00016798,2]
[365534240,1749771032662,-246.06,0.00016798,2]
[365534241,1749771032671,-300.66,0.00016798,2]
[365534242,1749771032680,-303.06,0.00016798,2]
[365534243,1749771032690,-252.25,0.00016799,2]
[365534244,1749771032699,-250.52,0.00016799,2]
[365534245,1749771032709,-253.64,0.00016799,2]
[365534246,1749771032719,-304.25,0.00016799,2]
[365534247,1749771032729,-250.14,0.00016799,2]
[365534248,1749771032739,-114.32456958,0.00016799,2]
[365534249,1749771032776,-131.09543042,0.00016799,2]
[365534250,1749771032786,-247.22,0.00016799,2]
[365534251,1749771032796,-302.66,0.00016799,2]
[365534252,1749771032806,-248.63,0.00016799,2]
[365534253,1749771032816,-249.82,0.00016799,2]
[365534254,1749771032825,-246.97,0.00016799,2]
[365534255,1749771032835,-180.35181158,0.00016799,2]
[365534256,1749771032847,-125.49818842,0.00016799,2]
[365534257,1749771032857,-252.32,0.00016799,2]
[365534258,1749771032867,-246.14,0.00016799,2]
[365534259,1749771032876,-151.0,0.00016889,2]
[365534260,1749771032886,-500.0,0.00016889,2]
[365534261,1749771032895,-500.0,0.00016889,2]
[365534262,1749771032906,-111.42265979,0.00016889,2]
[365534263,1749771032917,-388.57734021,0.00016889,2]
[365534264,1749771032931,-170.88585331,0.00016889,2]
[365534266,1749771032944,-329.11414669,0.00016889,2]
[365534268,1749771032953,-355.40598212,0.00016889,2]
[365534270,1749771032964,-144.59401788,0.00016889,2]
[365534272,1749771032975,-500.0,0.00016889,2]
[365534274,1749771032984,-418.85107606,0.00016889,2]
[365534278,1749771033015,-81.14892394,0.00016889,2]
[365534280,1749771033024,-500.0,0.00016889,2]
[365534282,1749771033034,-500.0,0.00016889,2]
[365534284,1749771033044,-500.0,0.00016889,2]
[365534286,1749771033054,-507.17647931,0.00016893,2]
[365534350,1749771038395,-254.94,0.00016272,2]
[365534351,1749771038404,-437.82352069,0.00016893,2]
[365534352,1749771038414,-155.0,0.00016893,2]
[365534353,1749771038424,-3331.0,0.00016893,2]
[365534354,1749771038433,-6421.23647931,0.00016893,2]
[365534355,1749771038445,-644.76352069,0.00016893,2]
[365534356,1749771038455,-163.56060217,0.00016894,2]
[365534357,1749771038465,-500.0,0.00016896,2]
[365534358,1749771038475,-4878.69,0.00016897,2]
[365534359,1749771038484,-172.35354572,0.00016899,2]
[365534360,1749771038494,-500.0,0.00016899,2]
[365534361,1749771038504,-500.0,0.00016899,2]
[365534362,1749771038515,-500.0,0.00016899,2]
[365534363,1749771038524,-558.17930567,0.00016899,2]
[365534364,1749771038534,-300.63805943,0.00016899,2]
[365534365,1749771038644,-199.36194057,0.00016899,2]
[365534366,1749771038654,-598.20304505,0.00016899,2]
[365534367,1749771038664,-3044.68684915,0.000169,5]
[365534368,1749771038697,-400.0,0.000169,5]
[365534401,1749771041087,-70593.96612898,0.000169,5]
[365534403,1749771041097,-301.1,0.000169,2]
[365534404,1749771041106,-1163.98,0.000169,2]
[365534405,1749771041115,-354.6,0.000169,2]
[365534406,1749771041124,-1163.98,0.000169,2]
[365534407,1749771041134,-354.6,0.000169,2]
[365534408,1749771041143,-163.5606021,0.00016915,2]
[365534409,1749771041153,-453.353,0.00016929,2]
[365534410,1749771041162,-163.5606021,0.00016936,2]
[365534411,1749771041171,-163.5606021,0.00016957,2]
[365534412,1749771041180,-4069.64865846,0.00016968,2]
[365534413,1749771041189,-553.76378431,0.00016973,2]
[365534414,1749771041202,-500.0,0.00016973,2]
[365534415,1749771041218,-500.0,0.00016973,2]
[365534416,1749771041229,-500.0,0.00016973,2]
[365534417,1749771041238,-500.0,0.00016973,2]
[365534418,1749771041248,-163.5606021,0.00016978,2]
[365534419,1749771041258,-1430.0,0.0001698,2]
[365534420,1749771041267,-4069.64865846,0.00016986,2]
[365534421,1749771041278,-322.2447257,0.00016992,2]
[365534422,1749771041287,-500.0,0.00016993,2]
[365534423,1749771041305,-500.0,0.00016993,2]
[365534425,1749771041316,-500.0,0.00016993,2]
[365534426,1749771041326,-572.78765884,0.00016993,2]
[365534427,1749771041335,-500.0,0.00016993,2]
[365534428,1749771041344,-500.0,0.00016993,2]
[365534429,1749771041354,-500.0,0.00016993,2]
[365534430,1749771041364,-500.0,0.00016993,2]
[365534431,1749771041374,-500.0,0.00016993,2]
[365534432,1749771041383,-500.0,0.00016993,2]
[365534433,1749771041393,-150.0,0.00016993,2]
[365534434,1749771041403,-490.0,0.00016993,2]
[365534435,1749771041414,-490.0,0.00016993,2]
[365534436,1749771041424,-490.0,0.00016993,2]
[365534437,1749771041434,-517.57,0.00016993,2]
[365534438,1749771041443,-490.0,0.00016993,2]
[365534439,1749771041453,-490.0,0.00016993,2]
[365534440,1749771041462,-490.0,0.00016993,2]
[365534441,1749771041472,-490.0,0.00016993,2]
[365534442,1749771041482,-490.0,0.00016993,2]
[365534443,1749771041492,-490.0,0.00016993,2]
[365534444,1749771041501,-2685.797618,0.00016993,2]
[365534445,1749771041511,-490.0,0.00016993,2]
[365534446,1749771041521,-490.0,0.00016993,2]
[365534447,1749771041530,-911.58,0.00016993,2]
[365534448,1749771041539,-490.0,0.00016993,2]
[365534449,1749771041549,-490.0,0.00016993,2]
[365534450,1749771041560,-186.5315166,0.00016993,2]
[365534451,1749771041569,-490.0,0.00016993,2]
[365534452,1749771041579,-581.2753966,0.00016993,2]
[365534453,1749771041589,-490.0,0.00016993,2]
[365534454,1749771041599,-459.49125959,0.00016993,2]
[365534455,1749771041608,-490.0,0.00016993,2]
[365534456,1749771041618,-6265.71,0.00016993,2]
[365534457,1749771041627,-155.01352894,0.00016993,2]
[365534458,1749771041637,-490.0,0.00016993,2]
[365534459,1749771041646,-490.0,0.00016993,2]
[365534460,1749771041656,-456.03252106,0.00016993,2]
[365534461,1749771041665,-490.0,0.00016993,2]
[365534462,1749771041675,-1422.24,0.00016993,2]
[365534463,1749771041684,-490.0,0.00016993,2]
[365534464,1749771041694,-490.0,0.00016993,2]
[365534465,1749771041703,-1758.89,0.00016993,2]
[365534466,1749771041713,-490.0,0.00016993,2]
[365534467,1749771041722,-596.14,0.00016993,2]
[365534468,1749771041732,-490.0,0.00016993,2]
[365534469,1749771041744,-2387.55,0.00016993,2]
[365534470,1749771041755,-490.0,0.00016993,2]
[365534471,1749771041764,-2875.33,0.00016993,2]
[365534472,1749771041774,-1417.3,0.00016993,2]
[365534473,1749771041784,-490.0,0.00016993,2]
[365534474,1749771041794,-2179.12,0.00016993,2]
[365534475,1749771041803,-564.01,0.00016993,2]
[365534476,1749771041813,-10201.76,0.00016993,2]
[365534477,1749771041824,-490.0,0.00016993,2]
[365534478,1749771041833,-490.0,0.00016993,2]
[365534479,1749771041843,-982.54,0.00016993,2]
[365534480,1749771041853,-1586.64,0.00016993,2]
[365534481,1749771041863,-490.0,0.00016993,2]
[365534482,1749771041872,-490.0,0.00016993,2]
[365534483,1749771041882,-1419.32,0.00016993,2]
[365534484,1749771041891,-490.0,0.00016993,2]
[365534485,1749771041901,-490.0,0.00016993,2]
[365534486,1749771041911,-923.37,0.00016993,2]
[365534487,1749771041920,-923.37,0.00016993,2]
[365534488,1749771041931,-490.0,0.00016993,2]
[365534489,1749771041941,-2543.36,0.00016993,2]
[365534490,1749771041951,-490.0,0.00016993,2]
[365534491,1749771041961,-490.59441041,0.00016993,2]
[365534492,1749771041971,-8912.14,0.00016993,2]
[365534493,1749771041980,-1270.15,0.00016993,2]
[365534494,1749771041990,-490.0,0.00016993,2]
[365534495,1749771042000,-490.0,0.00016993,2]
[365534496,1749771042011,-869.8,0.00016993,2]
[365534497,1749771042021,-490.0,0.00016993,2]
[365534498,1749771042031,-490.0,0.00016993,2]
[365534499,1749771042041,-500.0,0.00016993,2]
[365534500,1749771042051,-500.0,0.00016993,2]
[365534501,1749771042061,-575.44235527,0.00016993,2]
[365534502,1749771042071,-490.0,0.00016993,2]
[365534503,1749771042082,-490.0,0.00016993,2]
[365534504,1749771042092,-2660.83,0.00016993,2]
[365534505,1749771042101,-490.0,0.00016993,2]
[365534506,1749771042111,-490.0,0.00016993,2]
[365534507,1749771042120,-490.0,0.00016993,2]
[365534508,1749771042130,-490.0,0.00016993,2]
[365534509,1749771042140,-546.34509021,0.00016993,2]
[365534510,1749771042150,-490.0,0.00016993,2]
[365534511,1749771042159,-431.65514514,0.00016993,2]
[365534512,1749771042170,-490.0,0.00016993,2]
[365534513,1749771042180,-490.0,0.00016993,2]
[365534514,1749771042189,-679.24,0.00016993,2]
[365534515,1749771042199,-490.0,0.00016993,2]
[365534516,1749771042209,-490.0,0.00016993,2]
[365534517,1749771042219,-490.0,0.00016993,2]
[365534518,1749771042228,-1568.01,0.00016993,2]
[365534519,1749771042238,-649.09,0.00016993,2]
[365534520,1749771042247,-490.0,0.00016993,2]
[365534521,1749771042257,-490.0,0.00016993,2]
[365534522,1749771042266,-490.0,0.00016993,2]
[365534523,1749771042275,-2063.05,0.00016993,2]
[365534524,1749771042285,-1688.48,0.00016993,2]
[365534525,1749771042295,-490.0,0.00016993,2]
[365534526,1749771042304,-490.0,0.00016993,2]
[365534527,1749771042314,-490.0,0.00016993,2]
[365534528,1749771042323,-490.0,0.00016993,2]
[365534529,1749771042333,-490.0,0.00016993,2]
[365534530,1749771042343,-490.0,0.00016993,2]
[365534531,1749771042352,-490.0,0.00016993,2]
[365534532,1749771042362,-490.0,0.00016993,2]
[365534533,1749771042372,-2218.1,0.00016993,2]
[365534534,1749771042381,-5171.73,0.00016993,2]
[365534535,1749771042391,-253.88,0.00016993,2]
[365534536,1749771042400,-253.97,0.00016993,2]
[365534537,1749771042410,-247.01,0.00016993,2]
[365534538,1749771042419,-300.98,0.00016993,2]
[365534539,1749771042429,-490.0,0.00016994,2]
[365534540,1749771042438,-490.0,0.00016994,2]
[365534541,1749771042448,-490.0,0.00016994,2]
[365534542,1749771042458,-504.64761098,0.00016994,2]
[365534543,1749771042467,-491.43,0.00016994,2]
[365534544,1749771042477,-1587.8,0.00016994,2]
[365534545,1749771042487,-490.0,0.00016994,2]
[365534546,1749771042497,-490.0,0.00016994,2]
[365534547,1749771042508,-575.23662415,0.00016994,2]
[365534548,1749771042519,-636.43,0.00016994,2]
[365534549,1749771042529,-1747.24,0.00016994,2]
[365534550,1749771042539,-508.30856436,0.00016994,2]
[365534551,1749771042550,-576.5520002,0.00016994,2]
[365534552,1749771042559,-490.0,0.00016994,2]
[365534553,1749771042570,-490.0,0.00016994,2]
[365534554,1749771042581,-490.0,0.00016994,2]
[365534555,1749771042591,-490.0,0.00016994,2]
[365534556,1749771042601,-2130.71,0.00016994,2]
[365534557,1749771042611,-490.0,0.00016994,2]
[365534558,1749771042621,-490.0,0.00016994,2]
[365534559,1749771042631,-766.96,0.00016994,2]
[365534560,1749771042640,-490.0,0.00016994,2]
[365534561,1749771042650,-490.0,0.00016994,2]
[365534562,1749771042660,-490.0,0.00016994,2]
[365534563,1749771042671,-490.0,0.00016994,2]
[365534564,1749771042680,-490.0,0.00016994,2]
[365534565,1749771042690,-490.0,0.00016994,2]
[365534566,1749771042700,-490.0,0.00016994,2]
[365534567,1749771042710,-249.01703394,0.00016994,2]
[365534568,1749771042721,-490.0,0.00016994,2]
[365534569,1749771042730,-490.0,0.00016994,2]
[365534570,1749771042740,-490.0,0.00016994,2]
[365534571,1749771042750,-490.0,0.00016994,2]
[365534572,1749771042759,-490.0,0.00016994,2]
[365534573,1749771042768,-509.89,0.00016994,2]
[365534574,1749771042778,-553.57,0.00016994,2]
[365534575,1749771042787,-490.0,0.00016994,2]
[365534576,1749771042798,-490.0,0.00016994,2]
[365534577,1749771042808,-490.0,0.00016994,2]
[365534578,1749771042819,-801.02,0.00016994,2]
[365534579,1749771042828,-490.0,0.00016994,2]
[365534580,1749771042839,-490.0,0.00016994,2]
[365534581,1749771042848,-1788.85,0.00016994,2]
[365534582,1749771042858,-490.0,0.00016994,2]
[365534583,1749771042868,-1698.38,0.00016994,2]
[365534584,1749771042878,-490.0,0.00016994,2]
[365534585,1749771042887,-490.0,0.00016994,2]
[365534586,1749771042897,-490.0,0.00016994,2]
[365534587,1749771042906,-490.0,0.00016994,2]
[365534588,1749771042916,-808.6,0.00016994,2]
[365534589,1749771042926,-490.0,0.00016994,2]
[365534590,1749771042939,-490.0,0.00016994,2]
[365534591,1749771042949,-490.0,0.00016994,2]
[365534592,1749771042959,-675.99,0.00016994,2]
[365534593,1749771042968,-490.0,0.00016994,2]
[365534594,1749771042979,-490.0,0.00016994,2]
[365534595,1749771042989,-490.0,0.00016994,2]
[365534596,1749771042999,-523.22377643,0.00016994,2]
[365534597,1749771043008,-2017.65,0.00016994,2]
[365534598,1749771043018,-2585.75,0.00016994,2]
[365534599,1749771043029,-490.0,0.00016994,2]
[365534600,1749771043039,-490.0,0.00016994,2]
[365534601,1749771043049,-490.0,0.00016994,2]
[365534602,1749771043059,-337.51558044,0.00016994,2]
[365534603,1749771043069,-490.0,0.00016994,2]
[365534604,1749771043080,-763.37,0.00016994,2]
[365534605,1749771043091,-873.29,0.00016994,2]
[365534606,1749771043100,-612.00435173,0.00016994,2]
[365534607,1749771043111,-807.51,0.00016994,2]
[365534608,1749771043121,-490.0,0.00016994,2]
[365534609,1749771043131,-660.38,0.00016994,2]
[365534610,1749771043141,-845.67,0.00016994,2]
[365534611,1749771043151,-325.11214026,0.00016994,2]
[365534612,1749771043161,-679.2,0.00016994,2]
[365534613,1749771043171,-837.67,0.00016994,2]
[365534614,1749771043181,-490.0,0.00016994,2]
[365534615,1749771043190,-490.0,0.00016994,2]
[365534616,1749771043200,-547.68,0.00016994,2]
[365534617,1749771043209,-490.0,0.00016994,2]
[365534618,1749771043219,-490.0,0.00016994,2]
[365534619,1749771043229,-687.53,0.00016994,2]
[365534620,1749771043243,-490.0,0.00016994,2]
[365534622,1749771043252,-490.0,0.00016994,2]
[365534624,1749771043262,-985.37,0.00016994,2]
[365534625,1749771043271,-490.0,0.00016994,2]